fUSD/lending_fUSD_20260112
["ID","MTS","AMOUNT","RATE_DAILY","PERIOD"]
[401478697,1768257041533,-150.0,0.00016364,2]
[401478699,1768257041542,-150.0,0.00016367,2]
[401478701,1768257041552,-150.0,0.00016369,2]
[401478703,1768257041562,-150.0,0.00016376,2]
[401478705,1768257041571,-150.0,0.0001638,2]
[401478707,1768257041581,-150.0,0.00016385,2]
[401478709,1768257041590,-150.0,0.00016396,2]
[401478711,1768257041601,-150.0,0.00016397,2]
[401478713,1768257041610,-150.0,0.000164,2]
[401478715,1768257041620,-150.0,0.000164,2]
[401478717,1768257041630,-150.0,0.00016412,2]
[401478719,1768257041639,-150.0,0.00016412,2]
[401478721,1768257041650,-30000.0,0.00016417,2]
[401478723,1768257041662,-150.0,0.00016425,2]
[401478725,1768257041673,-150.0,0.00016425,2]
[401478728,1768257041682,-150.0,0.00016429,2]
[401478730,1768257041693,-150.0,0.00016431,2]
[401478732,1768257041702,-150.0,0.00016433,2]
[401478734,1768257041711,-166.66,0.00016434,2]
[401478736,1768257041721,-500.0,0.00016438,2]
[401478738,1768257041731,-210.2736974,0.00016438,2]
[401478740,1768257041741,-567.0,0.00016438,2]
[401478742,1768257041752,-1011.91,0.00016438,10]
[401478744,1768257041761,-151.0,0.00016438,2]
[401478746,1768257041771,-150.0,0.0001644,2]
[401478748,1768257041781,-150.0,0.00016447,2]
[401478750,1768257041791,-481.26273871,0.00016448,2]
[401478752,1768257041800,-150.0,0.00016453,2]
[401478754,1768257041810,-150.0,0.00016457,2]
[401478756,1768257041819,-150.0,0.00016462,2]
[401478758,1768257041828,-150.0,0.00016467,2]
[401478760,1768257041838,-150.0,0.0001647,2]
[401478762,1768257041847,-150.0,0.00016477,2]
[401478764,1768257041857,-150.0,0.00016477,2]
[401478766,1768257041870,-150.0,0.0001648,2]
[401478769,1768257041881,-150.0,0.00016481,2]
[401478771,1768257041891,-150.0,0.00016482,2]
[401478773,1768257041901,-150.0,0.00016495,2]
[401478775,1768257041910,-150.0,0.000165,2]
[401478777,1768257041920,-150.0,0.000165,2]
[401478778,1768257041929,-150.0,0.00016509,2]
[401478779,1768257041939,-1000.0,0.00016515,2]
[401478780,1768257041948,-150.0,0.00016515,2]
[401478781,1768257041958,-150.0,0.00016518,2]
[401478782,1768257041967,-150.0,0.00016518,2]
[401478783,1768257041976,-150.0,0.0001652,2]
[401478784,1768257041986,-150.0,0.00016523,2]
[401478785,1768257041995,-150.0,0.00016527,2]
[401478786,1768257042005,-150.0,0.00016533,2]
[401478787,1768257042014,-150.0,0.00016537,2]
[401478788,1768257042024,-150.0,0.00016553,2]
[401478790,1768257042033,-150.0,0.0001656,2]
[401478793,1768257042043,-150.0,0.0001656,2]
[401478795,1768257042053,-150.0,0.0001656,2]
[401478797,1768257042062,-150.0,0.00016566,2]
[401478799,1768257042071,-150.0,0.00016567,2]
[401478801,1768257042082,-150.0,0.00016569,2]
[401478803,1768257042092,-150.0,0.00016588,2]
[401478805,1768257042101,-150.0,0.00016593,2]
[401478807,1768257042110,-150.0,0.00016594,2]
[401478809,1768257042120,-150.0,0.000166,2]
[401478811,1768257042129,-150.0,0.000166,2]
[401478813,1768257042139,-150.0,0.00016605,2]
[401478815,1768257042148,-150.0,0.00016615,2]
[401478817,1768257042158,-150.0,0.00016615,2]
[401478819,1768257042168,-150.0,0.00016622,2]
[401478821,1768257042177,-150.0,0.00016624,2]
[401478823,1768257042187,-150.0,0.00016624,2]
[401478825,1768257042196,-150.0,0.00016625,2]
[401478827,1768257042206,-150.0,0.00016633,2]
[401478829,1768257042215,-150.0,0.0001664,2]
[401478832,1768257042229,-150.0,0.0001665,2]
[401478834,1768257042239,-150.0,0.0001665,2]
[401478836,1768257042248,-150.0,0.0001665,2]
[401478838,1768257042258,-166.67,0.00016654,2]
[401478840,1768257042268,-150.0,0.00016658,2]
[401478842,1768257042278,-150.0,0.00016659,2]
[401478844,1768257042288,-150.0,0.00016662,2]
[401478846,1768257042298,-150.0,0.00016667,2]
[401478848,1768257042308,-208.38,0.00016678,2]
[401478850,1768257042318,-150.0,0.00016678,2]
[401478852,1768257042328,-150.0,0.0001668,2]
[401478855,1768257042339,-10723.17950974,0.00016682,2]
[401478857,1768257042349,-150.0,0.00016691,2]
[401478859,1768257042359,-150.0,0.00016694,2]
[401478861,1768257042368,-150.0,0.00016695,2]
[401478863,1768257042378,-150.0,0.000167,2]
[401478865,1768257042388,-150.0,0.00016706,2]
[401478867,1768257042398,-150.0,0.00016708,2]
[401478869,1768257042407,-160.0,0.00016712,2]
[401478871,1768257042417,-150.0,0.00016714,2]
[401478873,1768257042427,-150.0,0.0001672,2]
[401478875,1768257042437,-150.0,0.00016724,2]
[401478877,1768257042447,-150.0,0.00016729,2]
[401478879,1768257042457,-150.0,0.00016729,2]
[401478882,1768257042467,-150.0,0.00016733,2]
[401478884,1768257042477,-150.0,0.00016734,2]
[401478886,1768257042486,-150.0,0.0001674,2]
[401478888,1768257042496,-150.0,0.00016754,2]
[401478890,1768257042505,-150.0,0.00016754,2]
[401478892,1768257042514,-150.0,0.00016756,2]
[401478894,1768257042525,-166.66,0.00016759,2]
[401478896,1768257042534,-150.0,0.0001676,2]
[401478898,1768257042544,-150.0,0.00016762,2]
[401478900,1768257042554,-150.0,0.00016765,2]
[401478902,1768257042564,-150.0,0.00016767,2]
[401478904,1768257042574,-150.0,0.00016785,2]
[401478906,1768257042584,-150.0,0.00016789,2]
[401478908,1768257042594,-150.0,0.00016791,2]
[401478910,1768257042603,-150.0,0.000168,2]
[401478912,1768257042614,-150.0,0.000168,2]
[401478914,1768257042624,-150.0,0.000168,2]
[401478916,1768257042636,-150.0,0.000168,2]
[401478918,1768257042646,-150.0,0.000168,2]
[401478920,1768257042659,-150.0,0.00016819,2]
[401478922,1768257042668,-150.0,0.00016822,2]
[401478924,1768257042678,-150.0,0.0001683,2]
[401478926,1768257042688,-433.0,0.00016833,2]
[401478928,1768257042699,-150.0,0.00016833,2]
[401478930,1768257042708,-150.0,0.00016835,2]
[401478932,1768257042718,-150.0,0.00016835,2]
[401478934,1768257042729,-150.0,0.0001684,2]
[401478936,1768257042739,-150.0,0.00016846,2]
[401478939,1768257042749,-150.0,0.00016847,2]
[401478941,1768257042758,-150.0,0.00016855,2]
[401478943,1768257042768,-10723.17950974,0.00016856,2]
[401478945,1768257042778,-150.0,0.00016867,2]
[401478947,1768257042787,-150.0,0.00016871,2]
[401478949,1768257042798,-150.0,0.00016875,2]
[401478951,1768257042807,-150.0,0.00016875,2]
[401478953,1768257042817,-150.0,0.0001688,2]
[401478955,1768257042826,-166.67,0.00016883,2]
[401478957,1768257042836,-150.0,0.00016887,2]
[401478959,1768257042846,-150.0,0.00016892,2]
[401478961,1768257042857,-150.0,0.00016892,2]
[401478963,1768257042867,-556.81,0.000169,2]
[401478966,1768257042877,-556.81,0.000169,2]
[401478968,1768257042886,-467.15,0.000169,2]
[401478970,1768257042896,-556.81,0.000169,2]
[401478972,1768257042906,-292.46,0.000169,2]
[401478974,1768257042915,-556.81,0.000169,2]
[401478976,1768257042925,-467.15,0.000169,2]
[401478978,1768257042935,-150.0,0.000169,2]
[401478980,1768257042944,-150.0,0.00016903,2]
[401478983,1768257042954,-150.0,0.00016906,2]
[401478986,1768257042964,-150.0,0.0001692,2]
[401478989,1768257042973,-150.0,0.0001692,2]
[401478991,1768257042983,-150.0,0.0001692,2]
[401478993,1768257042993,-150.0,0.00016931,2]
[401478995,1768257043003,-481.26273871,0.00016932,2]
[401478997,1768257043013,-150.0,0.00016933,2]
[401478999,1768257043022,-150.0,0.00016938,2]
[401479001,1768257043032,-150.0,0.00016941,2]
[401479003,1768257043042,-150.0,0.00016941,2]
[401479005,1768257043052,-150.0,0.00016953,2]
[401479007,1768257043063,-150.0,0.00016959,2]
[401479009,1768257043072,-150.0,0.0001696,2]
[401479011,1768257043081,-150.0,0.00016965,2]
[401479013,1768257043091,-150.0,0.00016967,2]
[401479015,1768257043102,-150.0,0.00016971,2]
[401479017,1768257043111,-10000.0,0.00016973,2]
[401479019,1768257043121,-150.0,0.00016976,2]
[401479021,1768257043131,-150.0,0.00016978,2]
[401479023,1768257043140,-1112.78,0.00016978,2]
[401479025,1768257043150,-500.0,0.00016981,2]
[401479027,1768257043160,-500.0,0.00016981,2]
[401479030,1768257043169,-500.0,0.00016981,2]
[401479032,1768257043179,-391.13971577,0.00016981,2]
[401479034,1768257043188,-150.0,0.00016985,2]
[401479036,1768257043198,-150.0,0.00016985,2]
[401479038,1768257043207,-150.0,0.00016987,2]
[401479040,1768257043216,-150.0,0.00017,2]
[401479042,1768257043226,-150.0,0.00017,2]
[401479044,1768257043236,-250.0,0.00017,2]
[401479046,1768257043246,-3557.07289406,0.00017,2]
[401479048,1768257043255,-160.0,0.00017,2]
[401479050,1768257043265,-225.13457576,0.00017,2]
[401479052,1768257043275,-150.0,0.0001701,2]
[401479054,1768257043285,-150.0,0.00017012,2]
[401479056,1768257043294,-150.0,0.00017016,2]
[401479058,1768257043304,-150.0,0.00017018,2]
[401479060,1768257043314,-500.0,0.00017029,2]
[401479062,1768257043324,-10723.17950974,0.0001703,2]
[401479064,1768257043333,-150.0,0.00017031,2]
[401479066,1768257043342,-150.0,0.00017031,2]
[401479068,1768257043353,-150.0,0.00017033,2]
[401479070,1768257043362,-150.0,0.0001704,2]
[401479072,1768257043371,-661.95,0.00017041,2]
[401479074,1768257043381,-661.95,0.00017041,2]
[401479076,1768257043390,-150.0,0.00017044,2]
[401479078,1768257043400,-150.0,0.00017047,2]
[401479080,1768257043410,-150.0,0.00017047,2]
[401479082,1768257043419,-150.0,0.00017051,2]
[401479084,1768257043429,-150.0,0.00017055,2]
[401479086,1768257043439,-150.0,0.00017067,2]
[401479088,1768257043449,-469.78735424,0.00017071,2]
[401479090,1768257043459,-150.0,0.00017072,2]
[401479092,1768257043469,-161.98929508,0.00017073,2]
[401479094,1768257043478,-169.86648744,0.00017073,2]
[401479096,1768257043488,-173.30819609,0.00017073,2]
[401479098,1768257043498,-500.0,0.00017073,2]
[401479101,1768257043509,-500.0,0.00017073,2]
[401479103,1768257043519,-167.63634062,0.00017073,2]
[401479105,1768257043528,-175.33645003,0.00017073,2]
[401479107,1768257043538,-500.0,0.00017073,2]
[401479109,1768257043547,-500.0,0.00017073,2]
[401479111,1768257043557,-164.2110081,0.00017073,2]
[401479113,1768257043566,-537.39654828,0.00017073,2]
[401479115,1768257043576,-224.8179227,0.00017073,2]
[401479117,1768257043587,-500.0,0.00017073,2]
[401479119,1768257043596,-500.11872932,0.00017073,2]
[401479121,1768257043608,-500.0,0.00017073,2]
[401479123,1768257043618,-500.0,0.00017073,2]
[401479125,1768257043629,-500.0,0.00017073,2]
[401479127,1768257043639,-500.0,0.00017073,2]
[401479129,1768257043651,-500.0,0.00017073,2]
[401479131,1768257043662,-500.0,0.00017073,2]
[401479133,1768257043672,-500.0,0.00017073,2]
[401479135,1768257043681,-500.0,0.00017073,2]
[401479137,1768257043692,-500.0,0.00017073,2]
[401479139,1768257043701,-500.0,0.00017073,2]
[401479141,1768257043710,-500.0,0.00017073,2]
[401479143,1768257043720,-500.0,0.00017073,2]
[401479145,1768257043730,-500.0,0.00017073,2]
[401479147,1768257043739,-500.0,0.00017073,2]
[401479149,1768257043749,-169.17232811,0.00017073,2]
[401479151,1768257043758,-500.0,0.00017073,2]
[401479153,1768257043768,-500.0,0.00017073,2]
[401479156,1768257043778,-500.0,0.00017073,2]
[401479159,1768257043787,-500.0,0.00017073,2]
[401479162,1768257043797,-500.0,0.00017073,2]
[401479165,1768257043806,-163.4155148,0.00017073,2]
[401479168,1768257043815,-500.0,0.00017073,2]
[401479171,1768257043825,-486.88056707,0.00017073,2]
[401479174,1768257043834,-500.32712274,0.00017073,2]
[401479177,1768257043843,-500.26791262,0.00017073,2]
[401479181,1768257043853,-500.0,0.00017073,2]
[401479183,1768257043862,-500.0,0.00017073,2]
[401479185,1768257043872,-500.0,0.00017073,2]
[401479187,1768257043881,-500.0,0.00017073,2]
[401479189,1768257043891,-501.85422751,0.00017073,2]
[401479191,1768257043900,-500.0,0.00017073,2]
[401479193,1768257043910,-500.0,0.00017073,2]
[401479195,1768257043919,-500.0,0.00017073,2]
[401479197,1768257043928,-500.57959935,0.00017073,2]
[401479199,1768257043938,-150.0,0.00017077,2]
[401479201,1768257043947,-150.0,0.0001708,2]
[401479203,1768257043957,-150.0,0.00017082,2]
[401479205,1768257043967,-150.0,0.00017084,2]
[401479207,1768257043976,-166.66,0.00017085,2]
[401479209,1768257043986,-191.0,0.00017098,2]
[401479210,1768257043996,-322.6107,0.00017099,2]
[401479211,1768257044005,-500.0,0.00017099,2]
[401479212,1768257044016,-500.0,0.00017099,2]
[401479213,1768257044026,-500.0,0.00017099,2]
[401479214,1768257044036,-500.0,0.00017099,2]
[401479216,1768257044046,-620.0,0.00017099,2]
[401479217,1768257044056,-500.0,0.00017099,2]
[401479218,1768257044066,-998.0,0.00017099,2]
[401479219,1768257044076,-500.0,0.00017099,2]
[401479220,1768257044086,-500.0,0.00017099,2]
[401479221,1768257044101,-500.0,0.00017099,2]
[401479222,1768257044110,-500.0,0.00017099,2]
[401479223,1768257044119,-500.0,0.00017099,2]
[401479224,1768257044127,-500.0,0.00017099,2]
[401479225,1768257044135,-500.0,0.00017099,2]
[401479226,1768257044143,-500.0,0.00017099,2]
[401479227,1768257044152,-533.88981491,0.00017099,2]
[401479228,1768257044161,-150.0,0.000171,2]
[401479229,1768257044169,-150.0,0.000171,2]
[401479230,1768257044178,-150.0,0.000171,2]
[401479231,1768257044186,-150.0,0.000171,2]
[401479232,1768257044194,-150.0,0.000171,2]
[401479233,1768257044203,-150.0,0.000171,2]
[401479234,1768257044213,-1000.0,0.00017112,2]
[401479235,1768257044222,-150.0,0.00017116,2]
[401479236,1768257044232,-150.0,0.00017118,2]
[401479237,1768257044241,-150.0,0.0001712,2]
[401479238,1768257044251,-150.0,0.00017123,2]
[401479239,1768257044261,-150.0,0.00017128,2]
[401479240,1768257044270,-150.0,0.00017133,2]
[401479241,1768257044279,-150.0,0.00017145,2]
[401479242,1768257044289,-150.0,0.00017149,2]
[401479243,1768257044298,-150.0,0.00017153,2]
[401479244,1768257044308,-150.0,0.00017153,2]
[401479245,1768257044319,-150.0,0.00017156,2]
[401479246,1768257044329,-150.0,0.0001716,2]
[401479247,1768257044338,-150.0,0.00017167,2]
[401479248,1768257044348,-222.22418132,0.00017168,2]
[401479249,1768257044357,-150.0,0.00017169,2]
[401479250,1768257044367,-150.0,0.00017169,2]
[401479251,1768257044376,-467.15,0.00017178,2]
[401479252,1768257044385,-171.53,0.00017178,2]
[401479253,1768257044395,-150.0,0.00017178,2]
[401479254,1768257044404,-171.53,0.00017178,2]
[401479255,1768257044414,-1787.38,0.00017178,2]
[401479256,1768257044424,-305.42,0.00017178,2]
[401479257,1768257044434,-467.15,0.00017178,2]
[401479258,1768257044443,-171.53,0.00017178,2]
[401479259,1768257044453,-150.0,0.00017178,2]
[401479260,1768257044467,-301.93,0.00017178,2]
[401479261,1768257044476,-150.0,0.00017178,2]
[401479262,1768257044486,-556.81,0.00017178,2]
[401479263,1768257044497,-157.73,0.00017178,2]
[401479264,1768257044507,-179.28,0.00017178,2]
[401479265,1768257044516,-179.28,0.00017178,2]
[401479266,1768257044526,-467.15,0.00017178,2]
[401479267,1768257044536,-150.0,0.00017178,2]
[401479268,1768257044546,-556.81,0.00017178,2]
[401479269,1768257044556,-171.53,0.00017178,2]
[401479270,1768257044565,-179.28,0.00017178,2]
[401479271,1768257044575,-171.53,0.00017178,2]
[401479272,1768257044585,-556.81,0.00017178,2]
[401479273,1768257044595,-150.0,0.00017178,2]
[401479274,1768257044605,-467.15,0.00017178,2]
[401479275,1768257044615,-150.0,0.00017178,2]
[401479276,1768257044625,-150.0,0.00017182,2]
[401479277,1768257044635,-150.0,0.00017184,2]
[401479278,1768257044646,-150.0,0.00017188,2]
[401479279,1768257044663,-150.0,0.0001719,2]
[401479280,1768257044674,-150.0,0.000172,2]
[401479281,1768257044684,-150.0,0.000172,2]
[401479282,1768257044695,-1000.0,0.000172,2]
[401479283,1768257044705,-500.0,0.00017203,2]
[401479284,1768257044715,-10723.17950974,0.00017204,2]
[401479285,1768257044726,-150.0,0.00017212,2]
[401479286,1768257044737,-150.0,0.00017215,2]
[401479287,1768257044747,-150.0,0.00017215,2]
[401479288,1768257044757,-150.0,0.00017224,2]
[401479289,1768257044767,-150.0,0.00017229,2]
[401479292,1768257045136,-191.0,0.00017233,2]
[401479293,1768257045147,-150.0,0.00017233,2]
[401479294,1768257045157,-150.0,0.00017235,2]
[401479295,1768257045167,-150.0,0.0001724,2]
[401479296,1768257045177,-150.0,0.00017241,2]
[401479297,1768257045187,-150.0,0.00017247,2]
[401479298,1768257045196,-150.0,0.00017259,2]
[401479299,1768257045206,-150.0,0.00017259,2]
[401479300,1768257045216,-150.0,0.00017262,2]
[401479301,1768257045226,-150.0,0.00017267,2]
[401479302,1768257045237,-150.0,0.00017269,2]
[401479303,1768257045247,-505.0,0.00017271,2]
[401479304,1768257045257,-1267.0,0.00017271,2]
[401479305,1768257045267,-914.0,0.00017271,2]
[401479306,1768257045277,-1201.0,0.00017271,2]
[401479307,1768257045287,-1330.0,0.00017271,2]
[401479308,1768257045297,-3469.0,0.00017271,2]
[401479309,1768257045306,-1405.0,0.00017271,2]
[401479310,1768257045316,-229.44,0.00017273,2]
[401479311,1768257045325,-150.0,0.0001728,2]
[401479312,1768257045335,-150.0,0.0001728,2]
[401479313,1768257045345,-150.0,0.0001728,2]
[401479314,1768257045355,-150.0,0.00017294,2]
[401479315,1768257045365,-150.0,0.00017297,2]
[401479316,1768257045375,-150.0,0.000173,2]
[401479317,1768257045384,-150.0,0.00017308,2]
[401479318,1768257045394,-150.0,0.00017308,2]
[401479319,1768257045404,-587.0,0.00017312,2]
[401479320,1768257045414,-587.0,0.00017312,2]
[401479321,1768257045425,-150.0,0.00017313,2]
[401479322,1768257045435,-150.0,0.0001732,2]
[401479323,1768257045445,-150.0,0.00017325,2]
[401479324,1768257045455,-150.0,0.00017325,2]
[401479325,1768257045466,-150.0,0.00017329,2]
[401479326,1768257045476,-191.0,0.0001733,2]
[401479327,1768257045486,-2519.6,0.00017332,2]
[401479328,1768257045502,-150.0,0.00017333,2]
[401479329,1768257045512,-150.0,0.00017345,2]
[401479330,1768257045523,-150.0,0.00017353,2]
[401479331,1768257045534,-150.0,0.00017354,2]
[401479332,1768257045544,-150.0,0.0001736,2]
[401479333,1768257045555,-150.0,0.00017365,2]
[401479334,1768257045566,-150.0,0.00017365,2]
[401479335,1768257045577,-150.0,0.00017367,2]
[401479336,1768257045587,-150.0,0.0001737,2]
[401479337,1768257045598,-10723.17950974,0.00017378,2]
[401479338,1768257045609,-150.0,0.00017378,2]
[401479339,1768257045620,-150.0,0.00017381,2]
[401479340,1768257045630,-150.0,0.000174,2]
[401479341,1768257045640,-150.0,0.000174,2]
[401479342,1768257045652,-150.0,0.000174,2]
[401479343,1768257045665,-150.0,0.000174,2]
[401479344,1768257045675,-150.0,0.000174,2]
[401479345,1768257045686,-150.0,0.00017409,2]
[401479346,1768257045696,-150.0,0.00017411,2]
[401479347,1768257045707,-150.0,0.00017415,2]
[401479348,1768257045718,-481.26273871,0.00017416,2]
[401479351,1768257045729,-150.0,0.00017433,2]
[401479354,1768257045738,-150.0,0.00017435,2]
[401479355,1768257045749,-150.0,0.00017437,2]
[401479356,1768257045759,-150.0,0.0001744,2]
[401479358,1768257045769,-150.0,0.00017444,2]
[401479359,1768257045780,-150.0,0.00017446,2]
[401479360,1768257045790,-150.0,0.00017446,2]
[401479361,1768257045800,-150.87,0.00017452,2]
[401479362,1768257045811,-150.0,0.0001746,2]
[401479363,1768257045822,-150.0,0.00017466,2]
[401479364,1768257045832,-150.0,0.00017467,2]
[401479365,1768257045843,-2351.0,0.00017468,2]
[401479366,1768257045853,-150.0,0.00017471,2]
[401479368,1768257045864,-150.0,0.00017471,2]
[401479370,1768257045874,-150.0,0.00017476,2]
[401479371,1768257045885,-150.0,0.0001748,2]
[401479372,1768257045895,-150.0,0.00017486,2]
[401479373,1768257045906,-150.0,0.00017492,2]
[401479374,1768257045917,-150.0,0.00017494,2]
[401479375,1768257045927,-191.0,0.00017496,2]
[401479376,1768257045937,-150.0,0.000175,2]
[401479377,1768257045947,-2000.0,0.000175,2]
[401479378,1768257045957,-1601.85016191,0.000175,2]
[401479379,1768257045967,-170.46857895,0.00017502,2]
[401479380,1768257045977,-150.0,0.00017505,2]
[401479381,1768257045987,-150.0,0.00017506,2]
[401479382,1768257045997,-150.0,0.00017509,2]
[401479383,1768257046007,-150.0,0.0001752,2]
[401479384,1768257046017,-150.0,0.00017522,2]
[401479385,1768257046027,-150.0,0.00017533,2]
[401479386,1768257046038,-6157.84376205,0.00017535,2]
[401479387,1768257046047,-191.0,0.00017537,2]
[401479388,1768257046062,-150.0,0.00017538,2]
[401479389,1768257046073,-2820.9877297,0.00017541,2]
[401479390,1768257046083,-150.0,0.00017541,2]
[401479391,1768257046093,-150.0,0.00017542,2]
[401479392,1768257046103,-150.0,0.0001755,2]
[401479393,1768257046113,-150.0,0.0001755,2]
[401479394,1768257046123,-150.0,0.0001755,2]
[401479395,1768257046133,-10723.17950974,0.00017552,2]
[401479396,1768257046143,-150.0,0.0001756,2]
[401479397,1768257046153,-150.0,0.00017567,2]
[401479398,1768257046163,-170.46857894,0.00017568,2]
[401479399,1768257046173,-150.0,0.00017575,2]
[401479400,1768257046183,-150.0,0.00017576,2]
[401479401,1768257046192,-150.0,0.00017576,2]
[401479402,1768257046202,-150.0,0.00017578,2]
[401479403,1768257046212,-191.0,0.00017581,2]
[401479404,1768257046222,-150.0,0.00017585,2]
[401479405,1768257046232,-150.0,0.00017585,2]
[401479406,1768257046243,-150.0,0.00017595,2]
[401479407,1768257046252,-158.91856111,0.00017599,2]
[401479408,1768257046262,-150.0,0.000176,2]
[401479409,1768257046272,-150.0,0.000176,2]
[401479410,1768257046283,-1104.26040629,0.00017601,5]
[401479411,1768257046293,-500.0,0.00017601,2]
[401479412,1768257046303,-500.0,0.00017601,2]
[401479413,1768257046313,-360.17683286,0.00017601,2]
[401479414,1768257046323,-500.0,0.00017601,2]
[401479415,1768257046333,-575.35243908,0.00017601,2]
[401479416,1768257046344,-500.0,0.00017601,2]
[401479417,1768257046354,-500.0,0.00017601,2]
[401479418,1768257046364,-500.0,0.00017601,2]
[401479419,1768257046374,-500.0,0.00017601,2]
[401479420,1768257046384,-500.0,0.00017601,2]
[401479421,1768257046395,-500.0,0.00017601,2]
[401479422,1768257046405,-500.0,0.00017601,2]
[401479423,1768257046419,-500.0,0.00017601,2]
[401479424,1768257046429,-661272.3434381,0.00017602,2]
[401479425,1768257046439,-38667.348096,0.00017602,2]
[401479426,1768257046449,-357087.6252581,0.00017602,2]
[401479427,1768257046460,-170.6543314,0.00017602,2]
[401479428,1768257046470,-97455.3650229,0.00017602,2]
[401479429,1768257046481,-3057.3962724,0.00017602,2]
[401479430,1768257046491,-150.0,0.00017606,2]
[401479431,1768257046502,-150.0,0.00017607,2]
[401479432,1768257046512,-150.0,0.00017612,2]
[401479433,1768257046522,-273.0,0.0001762,2]
[401479434,1768257046532,-987.57806594,0.00017621,2]
[401479435,1768257046543,-500.0,0.00017621,2]
[401479436,1768257046553,-166.96227274,0.00017621,2]
[401479437,1768257046564,-503.84192068,0.00017621,2]
[401479438,1768257046574,-500.0,0.00017621,2]
[401479439,1768257046584,-1031.96318574,0.00017621,2]
[401479440,1768257046595,-1010.77976475,0.00017621,2]
[401479441,1768257046605,-500.0,0.00017621,2]
[401479442,1768257046615,-1000.95743752,0.00017621,2]
[401479443,1768257046629,-500.0,0.00017621,2]
[401479444,1768257046640,-540.4577012,0.00017621,2]
[401479445,1768257046651,-1031.53854137,0.00017621,2]
[401479446,1768257046665,-1000.70457439,0.00017621,2]
[401479447,1768257046675,-1000.0,0.00017621,2]
[401479448,1768257046685,-800.28905191,0.00017621,2]
[401479449,1768257046695,-1000.0,0.00017621,2]
[401479450,1768257046706,-872.06319895,0.00017621,2]
[401479451,1768257046716,-1000.0,0.00017621,2]
[401479452,1768257046726,-1000.0,0.00017621,2]
[401479453,1768257046736,-500.0,0.00017621,2]
[401479454,1768257046747,-237.74478366,0.00017621,2]
[401479455,1768257046757,-1000.0,0.00017621,2]
[401479456,1768257046766,-500.0,0.00017621,2]
[401479457,1768257046776,-1000.0,0.00017621,2]
[401479458,1768257046786,-1000.0,0.00017621,2]
[401479459,1768257046796,-500.84213941,0.00017621,2]
[401479460,1768257046807,-648.07606732,0.00017621,2]
[401479461,1768257046821,-500.38035534,0.00017621,2]
[401479462,1768257046831,-1000.0,0.00017621,2]
[401479463,1768257046841,-1000.0,0.00017621,2]
[401479464,1768257046851,-1000.0,0.00017621,2]
[401479465,1768257046862,-150.0,0.00017631,2]
[401479466,1768257046872,-150.0,0.00017633,2]
[401479467,1768257046882,-150.0,0.00017634,2]
[401479468,1768257046892,-170.46857894,0.00017635,2]